[Event "Reykjavik Open 2025"]
[Site "Reykjavik"]
[Date "2025.04.10"]
[Round "2.37"]
[White "Willems, Niels"]
[Black "Omarsson, Adam"]
[Result "1-0"]
[Annotator "RC"]
[ECO "E68"]
[WhiteElo "2394"]
[BlackElo "2072"]
[PlyCount "81"]
[EventDate "2025.04.09"]
[EventType "swiss"]
[EventCountry "ISL"]
[SourceTitle "playchess.com"]
[Source "ChessBase"]
[SourceQuality "1"]
[TimeControl "40/5400+30:1800+30"]

1. c4 {[%emt 0:00:04]} Nf6 {[%emt 0:00:06]} 2. Nc3 {[%emt 0:00:14]} g6 {[%emt 0:00:06]} 3. g3 {[%emt 0:00:00]} Bg7 {[%emt 0:00:10]} 4. Bg2 {[%emt 0:00:05]} O-O {[%emt 0:00:58]} 5. d4 {[%emt 0:00:11]} d6 {[%emt 0:00:10]} 6. Nf3 {[%emt 0:00:08]} Nbd7 {[%emt 0:00:06]} 7. O-O {[%emt 0:00:20]} e5 {[%emt 0:00:13]} 8. Qc2 {[%emt 0:01:02]} Re8 {[%emt 0:09:40]} 9. Rd1 {[%emt 0:01:48]} c6 {[%emt 0:03:09]} 10. e4 {[%emt 0:04:57]} Qc7 {[%emt 0:06:56]} 11. b3 {[%emt 0:02:10]} a5 {[%emt 0:00:49]} 12. Ba3 {[%emt 0:05:54]} exd4 {[%emt 0:02:59]} 13. Rxd4 {[%emt 0:09:21]} Nc5 {[%emt 0:02:46]} 14. Rad1 {[%emt 0:02:30]} Bg4 {[%emt 0:09:00]} 15. h3 {[%emt 0:03:47]} Bxf3 {[%emt 0:01:38]} 16. Bxf3 {[%emt 0:00:02]} Re6 {[%emt 0:01:48]} 17. Ne2 {[%emt 0:06:03]} Ne8 {[%emt 0:02:46]} 18. Bxc5 {[%emt 0:04:30]} dxc5 {[%emt 0:01:03]} 19. Rd7 {[%emt 0:00:04]} Qe5 {[%emt 0:02:48]} 20. Nf4 {[%emt 0:10:03]} Re7 {[%emt 0:01:16]} 21. Nd3 {[%emt 0:01:50]} Qg5 {[%emt 0:01:06]} 22. h4 {[%emt 0:00:25]} Qf6 {[%emt 0:00:08]} 23. e5 {[%emt 0:00:26]} Qe6 {[%emt 0:01:27]} 24. Bg4 {[%emt 0:01:51]} f5 {[%emt 0:00:28]} 25. exf6 {[%emt 0:00:49]} Qxf6 {[%emt 0:00:07]} 26. Nxc5 {[%emt 0:00:46]} Rxd7 {[%emt 0:05:17]} 27. Rxd7 {[%emt 0:00:54]} b6 {[%emt 0:04:22]} 28. Ne6 {[%emt 0:01:45]} Bh6 {[%emt 0:00:36]} 29. Qe4 {[%emt 0:06:42]} Ng7 {[%emt 0:01:35]} 30. Qxc6 {[%emt 0:03:20]} Rf8 {[%emt 0:00:10]} 31. Qxb6 {[%emt 0:00:32]} Kh8 {[%emt 0:01:47]} 32. Qd4 {[%emt 0:03:49]} Nxe6 {[%emt 0:01:17]} 33. Bxe6 {[%emt 0:00:03]} Qxd4 {[%emt 0:00:13]} 34. Rxd4 {[%emt 0:00:02]} Re8 {[%emt 0:00:08]} 35. Re4 {[%emt 0:00:34]} Kg7 {[%emt 0:00:23]} 36. g4 {[%emt 0:01:39]} Bd2 {[%emt 0:00:20]} 37. c5 {[%emt 0:02:50]} Bb4 {[%emt 0:00:26]} 38. c6 {[%emt 0:00:37]} Bd6 {[%emt 0:00:06]} 39. g5 {[%emt 0:00:41]} h6 {[%emt 0:00:21]} 40. Kg2 {[%emt 0:00:45]} hxg5 {[%emt 0:00:27]} 41. hxg5 {[%emt 0:30:02]} 1-0

[Event "Reykjavik Open 2025"]
[Site "Reykjavik"]
[Date "2025.04.10"]
[Round "2.38"]
[White "Cigan, Jason"]
[Black "Thorfinnsson, Bjorn"]
[Result "0-1"]
[Annotator "RC"]
[ECO "C90"]
[WhiteElo "2044"]
[BlackElo "2386"]
[PlyCount "136"]
[EventDate "2025.04.09"]
[EventType "swiss"]
[EventCountry "ISL"]
[SourceTitle "playchess.com"]
[Source "ChessBase"]
[SourceQuality "1"]
[TimeControl "40/5400+30:1800+30"]

1. e4 {[%emt 0:00:02]} e5 {[%emt 0:00:07]} 2. Nf3 {[%emt 0:00:06]} Nc6 {[%emt 0:00:06]} 3. Bb5 {[%emt 0:00:04]} a6 {[%emt 0:00:23]} 4. Ba4 {[%emt 0:00:04]} Nf6 {[%emt 0:00:23]} 5. O-O {[%emt 0:00:45]} Be7 {[%emt 0:00:24]} 6. Re1 {[%emt 0:00:17]} b5 {[%emt 0:00:20]} 7. Bb3 {[%emt 0:00:04]} d6 {[%emt 0:00:19]} 8. c3 {[%emt 0:00:06]} Na5 {[%emt 0:00:06]} 9. Bc2 {[%emt 0:00:08]} c5 {[%emt 0:00:12]} 10. d4 {[%emt 0:05:44]} Qc7 {[%emt 0:00:40]} 11. d5 {[%emt 0:01:05]} Nc4 {[%emt 0:02:44]} 12. b3 {[%emt 0:02:09]} Nb6 {[%emt 0:00:05]} 13. a4 {[%emt 0:00:18]} O-O {[%emt 0:02:34]} 14. a5 {[%emt 0:09:54]} Nbd7 {[%emt 0:01:08]} 15. Nbd2 {[%emt 0:00:13]} Nh5 {[%emt 0:04:59]} 16. Nf1 {[%emt 0:01:34]} g6 {[%emt 0:07:53]} 17. Bh6 {[%emt 0:02:36]} Ng7 {[%emt 0:00:24]} 18. g4 {[%emt 0:03:06]} Nf6 {[%emt 0:03:59]} 19. h3 {[%emt 0:00:16]} Kh8 {[%emt 0:00:46]} 20. Ng3 {[%emt 0:15:09]} Ng8 {[%emt 0:00:09]} 21. Bxg7+ {[%emt 0:03:15]} Kxg7 {[%emt 0:00:21]} 22. Kh2 {[%emt 0:00:07]} Qd7 {[%emt 0:04:25]} 23. Rh1 {[%emt 0:15:01]} h5 {[%emt 0:06:06]} 24. gxh5 {[%emt 0:00:17]} Qxh3+ {[%emt 0:00:09]} 25. Kg1 {[%emt 0:00:02]} Qg4 {[%emt 0:00:06]} 26. Kf1 {[%emt 0:01:14]} Qf4 {[%emt 0:01:46]} 27. Qd3 {[%emt 0:06:39]} Bg4 {[%emt 0:03:07]} 28. Ne1 {[%emt 0:05:53]} Nf6 {[%emt 0:03:14]} 29. Ng2 {[%emt 0:04:03]} Qg5 {[%emt 0:01:11]} 30. Ne3 {[%emt 0:02:51]} Rh8 {[%emt 0:12:26]} 31. Rg1 {[%emt 0:06:41]} Bh3+ {[%emt 0:06:33]} 32. Ke2 {[%emt 0:00:32]} Nxh5 {[%emt 0:16:21]} 33. Ngf5+ {[%emt 0:00:32]} Kf8 {[%emt 0:00:16]} 34. Rxg5 {[%emt 0:00:48]} Nf4+ {[%emt 0:00:07]} 35. Kf3 {[%emt 0:01:34]} Bxg5 {[%emt 0:01:33]} 36. Qd2 {[%emt 0:03:01]} gxf5 {[%emt 0:00:52]} 37. exf5 {[%emt 0:00:57]} Ke7 {[%emt 0:02:32]} 38. Rg1 {[%emt 0:02:55]} Rag8 {[%emt 0:01:31]} 39. Qe1 {[%emt 0:01:37]} Bh4 {[%emt 0:05:36]} 40. Qb1 {[%emt 0:04:37]} Kf8 {[%emt 0:04:44]} 41. Rxg8+ {[%emt 0:31:35]} Rxg8 {[%emt 0:30:08]} 42. f6 {[%emt 0:00:21]} Bg2+ {[%emt 0:07:42]} 43. Nxg2 {[%emt 0:00:40]} Rxg2 {[%emt 0:00:05]} 44. Bf5 {[%emt 0:00:00]} Rxf2+ {[%emt 0:00:00]} 45. Kg4 {[%emt 0:00:00]} Bxf6 {[%emt 0:00:00]} 46. Bc8 {[%emt 0:00:00]} Nxd5 {[%emt 0:00:00]} 47. Bxa6 {[%emt 0:00:00]} e4 {[%emt 0:00:00]} 48. Bb7 {[%emt 0:00:00]} Nxc3 {[%emt 0:00:00]} 49. Qg1 {[%emt 0:00:00]} Bd4 {[%emt 0:00:00]} 50. Qh1 {[%emt 0:00:00]} e3 {[%emt 0:00:00]} 51. a6 {[%emt 0:00:00]} c4 {[%emt 0:00:00]} 52. a7 {[%emt 0:00:00]} Bxa7 {[%emt 0:00:00]} 53. Qh8+ {[%emt 0:00:00]} Ke7 {[%emt 0:00:00]} 54. Qxc3 {[%emt 0:00:00]} e2 {[%emt 0:00:00]} 55. Bf3 {[%emt 0:02:19]} Rg2+ {[%emt 0:00:00]} 56. Kh3 {[%emt 0:02:30]} Bf2 {[%emt 0:00:00]} 57. Bxe2 {[%emt 0:00:43]} Rg3+ {[%emt 0:00:00]} 58. Qxg3 {[%emt 0:00:02]} Bxg3 {[%emt 0:00:00]} 59. bxc4 {[%emt 0:01:02]} bxc4 {[%emt 0:00:00]} 60. Kxg3 {[%emt 0:00:20]} d5 {[%emt 0:00:00]} 61. Kf4 {[%emt 0:00:22]} Kd6 {[%emt 0:00:00]} 62. Bh5 {[%emt 0:02:53]} f6 {[%emt 0:00:00]} 63. Kf5 {[%emt 0:01:48]} d4 {[%emt 0:00:00]} 64. Ke4 {[%emt 0:00:13]} Kc5 {[%emt 0:00:00]} 65. Bf7 {[%emt 0:00:30]} d3 {[%emt 0:00:00]} 66. Ke3 {[%emt 0:00:15]} f5 {[%emt 0:00:00]} 67. Bg6 {[%emt 0:00:41]} f4+ {[%emt 0:00:00]} 68. Kxf4 {[%emt 0:00:03]} Kd4 {[%emt 0:01:21]} 0-1

[Event "Reykjavik Open 2025"]
[Site "Reykjavik"]
[Date "2025.04.10"]
[Round "2.39"]
[White "Heimisson, Hilmir Freyr"]
[Black "De Mey, Juan Pablo"]
[Result "1-0"]
[Annotator "RC"]
[ECO "D31"]
[WhiteElo "2376"]
[BlackElo "2030"]
[PlyCount "85"]
[EventDate "2025.04.09"]
[EventType "swiss"]
[EventCountry "ISL"]
[SourceTitle "playchess.com"]
[Source "ChessBase"]
[SourceQuality "1"]
[TimeControl "40/5400+30:1800+30"]

1. d4 {[%emt 0:00:01]} d5 {[%emt 0:05:42]} 2. c4 {[%emt 0:00:13]} e6 {[%emt 0:00:02]} 3. Nc3 {[%emt 0:00:45]} Be7 {[%emt 0:00:03]} 4. cxd5 {[%emt 0:02:35]} exd5 {[%emt 0:00:01]} 5. Bf4 {[%emt 0:00:17]} c6 {[%emt 0:00:57]} 6. e3 {[%emt 0:03:01]} Bf5 {[%emt 0:00:07]} 7. Nge2 {[%emt 0:00:42]} Nd7 {[%emt 0:01:33]} 8. h4 {[%emt 0:06:39]} Nf8 {[%emt 0:27:20]} 9. h5 {[%emt 0:17:46]} h6 {[%emt 0:06:27]} 10. Ng3 {[%emt 0:05:57]} Bc8 {[%emt 0:00:01]} 11. Bd3 {[%emt 0:06:34]} Ne6 {[%emt 0:00:03]} 12. Be5 {[%emt 0:00:18]} Bf6 {[%emt 0:03:05]} 13. Nf5 {[%emt 0:01:13]} Kf8 {[%emt 0:08:17]} 14. Bd6+ {[%emt 0:07:58]} Be7 {[%emt 0:00:28]} 15. Bg3 {[%emt 0:01:01]} Nf6 {[%emt 0:00:30]} 16. Qd2 {[%emt 0:03:53]} b5 {[%emt 0:01:56]} 17. f3 {[%emt 0:04:15]} Ng5 {[%emt 0:04:38]} 18. Nxe7 {[%emt 0:01:37]} Kxe7 {[%emt 0:01:02]} 19. Ne2 {[%emt 0:02:08]} a5 {[%emt 0:00:07]} 20. Qc3 {[%emt 0:03:04]} Qb6 {[%emt 0:00:28]} 21. Rc1 {[%emt 0:00:37]} Bd7 {[%emt 0:01:21]} 22. Be5 {[%emt 0:00:55]} Ne8 {[%emt 0:05:06]} 23. Ng3 {[%emt 0:00:37]} f6 {[%emt 0:00:06]} 24. Bf4 {[%emt 0:00:08]} Nd6 {[%emt 0:00:10]} 25. O-O {[%emt 0:01:50]} Rhd8 {[%emt 0:00:31]} 26. Bg6 {[%emt 0:03:07]} Ngf7 {[%emt 0:01:30]} 27. e4 {[%emt 0:03:28]} Kf8 {[%emt 0:08:15]} 28. Bxf7 {[%emt 0:02:45]} Nxf7 {[%emt 0:00:40]} 29. exd5 {[%emt 0:00:01]} Rac8 {[%emt 0:00:20]} 30. d6 {[%emt 0:01:56]} Be6 {[%emt 0:01:25]} 31. Rfe1 {[%emt 0:02:29]} Bxa2 {[%emt 0:02:39]} 32. Qa3 {[%emt 0:02:54]} Qxd4+ {[%emt 0:00:32]} 33. Be3 {[%emt 0:00:44]} Qa4 {[%emt 0:00:38]} 34. d7+ {[%emt 0:03:55]} Qxa3 {[%emt 0:00:02]} 35. dxc8=Q {[%emt 0:00:18]} Qxe3+ {[%emt 0:00:07]} 36. Rxe3 {[%emt 0:00:06]} Rxc8 {[%emt 0:00:04]} 37. Ra1 {[%emt 0:00:27]} Bd5 {[%emt 0:00:33]} 38. Rxa5 {[%emt 0:00:07]} Nd6 {[%emt 0:00:04]} 39. Ra7 {[%emt 0:00:33]} Nc4 {[%emt 0:03:00]} 40. Ree7 {[%emt 0:11:12]} Nxb2 {[%emt 0:05:58]} 41. Nf5 {[%emt 0:30:39]} Nd3 {[%emt 0:31:42]} 42. Rxg7 {[%emt 0:00:00]} Nf4 {[%emt 0:00:00]} 43. Rh7 {[%emt 0:00:00]} 1-0

[Event "Reykjavik Open 2025"]
[Site "Reykjavik"]
[Date "2025.04.10"]
[Round "2.40"]
[White "Vihaan Karthikeya N"]
[Black "Thorfinnsson, Bragi"]
[Result "1-0"]
[Annotator "RC"]
[ECO "A83"]
[WhiteElo "2024"]
[BlackElo "2375"]
[PlyCount "61"]
[EventDate "2025.04.09"]
[EventType "swiss"]
[EventCountry "ISL"]
[SourceTitle "playchess.com"]
[Source "ChessBase"]
[SourceQuality "1"]
[TimeControl "40/5400+30:1800+30"]

1. d4 {[%emt 0:00:03]} f5 {[%emt 0:00:44]} 2. e4 {[%emt 0:00:18]} fxe4 {[%emt 0:01:28]} 3. Nc3 {[%emt 0:00:05]} Nf6 {[%emt 0:02:21]} 4. Bg5 {[%emt 0:00:08]} Nc6 {[%emt 0:04:51]} 5. d5 {[%emt 0:09:42]} Ne5 {[%emt 0:00:47]} 6. Qd4 {[%emt 0:00:25]} d6 {[%emt 0:04:02]} 7. Nxe4 {[%emt 0:01:17]} c6 {[%emt 0:09:34]} 8. f4 {[%emt 0:05:00]} Nf7 {[%emt 0:04:16]} 9. Bxf6 {[%emt 0:04:29]} gxf6 {[%emt 0:02:31]} 10. O-O-O {[%emt 0:04:09]} Bg7 {[%emt 0:01:44]} 11. Bd3 {[%emt 0:04:32]} Qa5 {[%emt 0:04:26]} 12. Nc3 {[%emt 0:02:21]} O-O {[%emt 0:03:50]} 13. f5 {[%emt 0:02:42]} c5 {[%emt 0:04:51]} 14. Qe4 {[%emt 0:01:52]} b5 {[%emt 0:01:12]} 15. Kb1 {[%emt 0:05:34]} c4 {[%emt 0:08:09]} 16. Bf1 {[%emt 0:00:35]} b4 {[%emt 0:07:44]} 17. Nce2 {[%emt 0:00:26]} Ng5 {[%emt 0:05:32]} 18. Qf4 {[%emt 0:02:28]} Rb8 {[%emt 0:03:01]} 19. h4 {[%emt 0:05:52]} Nf7 {[%emt 0:00:10]} 20. Nf3 {[%emt 0:01:25]} c3 {[%emt 0:00:34]} 21. Ned4 {[%emt 0:02:35]} Qxd5 {[%emt 0:03:26]} 22. Be2 {[%emt 0:01:02]} Qc5 {[%emt 0:01:25]} 23. g4 {[%emt 0:01:44]} Ne5 {[%emt 0:04:37]} 24. g5 {[%emt 0:01:49]} b3 {[%emt 0:08:46]} 25. Nxb3 {[%emt 0:03:19]} Rxb3 {[%emt 0:01:18]} 26. axb3 {[%emt 0:00:12]} fxg5 {[%emt 0:00:03]} 27. Qxg5 {[%emt 0:04:36]} Nf7 {[%emt 0:06:46]} 28. Qxe7 {[%emt 0:11:49]} Bxf5 {[%emt 0:00:37]} 29. Rhg1 {[%emt 0:00:13]} cxb2 {[%emt 0:01:45]} 30. Rxg7+ {[%emt 0:00:44]} Kxg7 {[%emt 0:00:04]} 31. Nd4 {[%emt 0:00:07]} 1-0

[Event "Reykjavik Open 2025"]
[Site "Reykjavik"]
[Date "2025.04.10"]
[Round "2.41"]
[White "Song, Yuxin"]
[Black "Omarsson, Josef"]
[Result "1-0"]
[Annotator "RC"]
[ECO "B30"]
[WhiteElo "2371"]
[BlackElo "2011"]
[PlyCount "81"]
[EventDate "2025.04.09"]
[EventType "swiss"]
[EventCountry "ISL"]
[SourceTitle "playchess.com"]
[Source "ChessBase"]
[SourceQuality "1"]
[TimeControl "40/5400+30:1800+30"]

1. e4 {[%emt 0:00:03]} c5 {[%emt 0:00:28]} 2. Nf3 {[%emt 0:00:04]} Nc6 {[%emt 0:00:30]} 3. Bb5 {[%emt 0:00:05]} e5 {[%emt 0:00:27]} 4. O-O {[%emt 0:00:07]} Bd6 {[%emt 0:00:27]} 5. d4 {[%emt 0:00:06]} Nxd4 {[%emt 0:00:46]} 6. Bc4 {[%emt 0:00:03]} h6 {[%emt 0:00:43]} 7. Nxd4 {[%emt 0:00:06]} cxd4 {[%emt 0:00:42]} 8. c3 {[%emt 0:00:02]} Bc5 {[%emt 0:01:58]} 9. Qb3 {[%emt 0:00:05]} Qe7 {[%emt 0:01:12]} 10. cxd4 {[%emt 0:00:06]} Bxd4 {[%emt 0:01:02]} 11. Be3 {[%emt 0:00:05]} Bxe3 {[%emt 0:08:14]} 12. fxe3 {[%emt 0:00:01]} Nf6 {[%emt 0:00:29]} 13. Nc3 {[%emt 0:00:03]} d6 {[%emt 0:01:42]} 14. Rxf6 {[%emt 0:03:05]} gxf6 {[%emt 0:04:37]} 15. Nd5 {[%emt 0:00:06]} Qd8 {[%emt 0:00:55]} 16. Rf1 {[%emt 0:00:48]} f5 {[%emt 0:08:58]} 17. exf5 {[%emt 0:00:27]} Bd7 {[%emt 0:01:09]} 18. Qxb7 {[%emt 0:04:10]} Rc8 {[%emt 0:02:14]} 19. b3 {[%emt 0:08:43]} Rg8 {[%emt 0:13:46]} 20. Rf2 {[%emt 0:12:48]} Rg4 {[%emt 0:01:46]} 21. h3 {[%emt 0:05:49]} Rg5 {[%emt 0:09:39]} 22. e4 {[%emt 0:05:39]} Kf8 {[%emt 0:08:51]} 23. Qxa7 {[%emt 0:00:08]} Bc6 {[%emt 0:04:10]} 24. Nb4 {[%emt 0:01:17]} Be8 {[%emt 0:03:56]} 25. Qe3 {[%emt 0:00:49]} Qa5 {[%emt 0:01:14]} 26. h4 {[%emt 0:01:34]} Rh5 {[%emt 0:03:24]} 27. f6 {[%emt 0:00:40]} Bb5 {[%emt 0:05:55]} 28. Qg3 {[%emt 0:00:54]} Bxc4 {[%emt 0:00:48]} 29. bxc4 {[%emt 0:00:03]} Qxb4 {[%emt 0:01:18]} 30. Qg7+ {[%emt 0:00:04]} Ke8 {[%emt 0:00:08]} 31. Qg8+ {[%emt 0:00:02]} Kd7 {[%emt 0:00:08]} 32. Qxf7+ {[%emt 0:00:02]} Kc6 {[%emt 0:00:08]} 33. Qxh5 {[%emt 0:00:03]} Qe1+ {[%emt 0:00:50]} 34. Rf1 {[%emt 0:00:02]} Qe3+ {[%emt 0:00:33]} 35. Kh2 {[%emt 0:00:28]} Rg8 {[%emt 0:02:10]} 36. Qf3 {[%emt 0:00:05]} Qa7 {[%emt 0:00:21]} 37. f7 {[%emt 0:00:05]} Rf8 {[%emt 0:00:06]} 38. Qd3 {[%emt 0:01:00]} Qe7 {[%emt 0:01:28]} 39. Qd5+ {[%emt 0:00:03]} Kc7 {[%emt 0:00:20]} 40. Qa5+ {[%emt 0:00:29]} Kc6 {[%emt 0:00:58]} 41. Qa6+ {[%emt 0:30:05]} 1-0

[Event "Reykjavik Open 2025"]
[Site "Reykjavik"]
[Date "2025.04.10"]
[Round "2.42"]
[White "Wartiovaara, Oliver"]
[Black "Arun, Nitish"]
[Result "0-1"]
[Annotator "RC"]
[ECO "B12"]
[WhiteElo "2359"]
[BlackElo "2004"]
[PlyCount "96"]
[EventDate "2025.04.09"]
[EventType "swiss"]
[EventCountry "ISL"]
[SourceTitle "playchess.com"]
[Source "ChessBase"]
[SourceQuality "1"]
[TimeControl "40/5400+30:1800+30"]

1. e4 {[%emt 0:00:04]} c6 {[%emt 0:00:10]} 2. d4 {[%emt 0:00:05]} d5 {[%emt 0:00:09]} 3. e5 {[%emt 0:00:05]} Bf5 {[%emt 0:00:09]} 4. h4 {[%emt 0:00:07]} h6 {[%emt 0:00:22]} 5. g4 {[%emt 0:00:05]} Bd7 {[%emt 0:00:08]} 6. h5 {[%emt 0:01:10]} c5 {[%emt 0:03:23]} 7. Nc3 {[%emt 0:00:11]} e6 {[%emt 0:00:27]} 8. Be3 {[%emt 0:01:17]} Qc7 {[%emt 0:08:49]} 9. Nf3 {[%emt 0:02:33]} c4 {[%emt 0:06:18]} 10. Nh4 {[%emt 0:04:30]} Bb4 {[%emt 0:06:15]} 11. f4 {[%emt 0:01:09]} Nc6 {[%emt 0:06:53]} 12. f5 {[%emt 0:01:53]} O-O-O {[%emt 0:03:13]} 13. fxe6 {[%emt 0:01:08]} Bxe6 {[%emt 0:00:11]} 14. Bh3 {[%emt 0:01:44]} Qd7 {[%emt 0:08:45]} 15. Nf5 {[%emt 0:02:48]} f6 {[%emt 0:10:36]} 16. exf6 {[%emt 0:06:15]} Nxf6 {[%emt 0:02:21]} 17. O-O {[%emt 0:00:51]} Bxc3 {[%emt 0:08:18]} 18. bxc3 {[%emt 0:00:17]} Kb8 {[%emt 0:01:53]} 19. Qf3 {[%emt 0:08:45]} Ka8 {[%emt 0:11:04]} 20. Rae1 {[%emt 0:04:40]} Ne4 {[%emt 0:00:27]} 21. Bf4 {[%emt 0:06:37]} Rhf8 {[%emt 0:01:41]} 22. Re2 {[%emt 0:14:20]} Rde8 {[%emt 0:03:29]} 23. Rg2 {[%emt 0:01:54]} Rf7 {[%emt 0:01:31]} 24. Bc1 {[%emt 0:05:54]} Ne7 {[%emt 0:01:38]} 25. Kh2 {[%emt 0:07:55]} Ng8 {[%emt 0:04:20]} 26. Bf4 {[%emt 0:01:17]} Ngf6 {[%emt 0:00:21]} 27. Be5 {[%emt 0:05:35]} Ng5 {[%emt 0:01:43]} 28. Qg3 {[%emt 0:01:12]} Nfe4 {[%emt 0:00:09]} 29. Qe3 {[%emt 0:01:32]} Nxh3 {[%emt 0:00:37]} 30. Qxh3 {[%emt 0:00:31]} Ng5 {[%emt 0:00:04]} 31. Qg3 {[%emt 0:03:50]} Ref8 {[%emt 0:00:49]} 32. Qf4 {[%emt 0:04:20]} Bxf5 {[%emt 0:00:34]} 33. gxf5 {[%emt 0:00:03]} Rxf5 {[%emt 0:00:16]} 34. Qg4 {[%emt 0:00:03]} Qe6 {[%emt 0:02:49]} 35. Rxf5 {[%emt 0:01:13]} Rf7 {[%emt 0:00:17]} 36. Rf6 Rxf6 {[%emt 0:00:30]} 37. Bf4 {[%emt 0:02:49]} Rf5 {[%emt 0:02:39]} 38. Bxg5 {[%emt 0:01:20]} a6 {[%emt 0:00:09]} 39. Qe2 {[%emt 0:02:21]} hxg5 {[%emt 0:00:47]} 40. Kg1 {[%emt 0:00:35]} Qd7 {[%emt 0:01:11]} 41. Rf2 {[%emt 0:34:00]} Rf4 {[%emt 0:31:11]} 42. Rxf4 {[%emt 0:03:32]} gxf4 {[%emt 0:00:08]} 43. Kf2 {[%emt 0:00:49]} Qh3 {[%emt 0:03:32]} 44. Qe8+ {[%emt 0:00:00]} Ka7 {[%emt 0:00:00]} 45. Qe7 {[%emt 0:00:00]} Qg3+ {[%emt 0:00:00]} 46. Ke2 {[%emt 0:00:00]} f3+ {[%emt 0:00:00]} 47. Kd1 {[%emt 0:00:00]} Qf4 {[%emt 0:00:00]} 48. Qe5 {[%emt 0:00:00]} Qg4 {[%emt 0:00:00]} 0-1

[Event "Reykjavik Open 2025"]
[Site "Reykjavik"]
[Date "2025.04.10"]
[Round "2.43"]
[White "Woods, Yannick"]
[Black "Bekker, Stefan"]
[Result "0-1"]
[Annotator "ChessBase"]
[ECO "B94"]
[WhiteElo "1979"]
[BlackElo "2358"]
[PlyCount "112"]
[EventDate "2025.04.09"]
[EventType "swiss"]
[EventCountry "ISL"]
[SourceTitle "playchess.com"]
[Source "ChessBase"]
[SourceQuality "1"]
[TimeControl "40/5400+30:1800+30"]

1. e4 {[%emt 0:00:03]} c5 {[%emt 0:00:10]} 2. Nf3 {[%emt 0:00:05]} d6 {[%emt 0:00:19]} 3. d4 {[%emt 0:00:04]} cxd4 {[%emt 0:00:07]} 4. Nxd4 {[%emt 0:00:02]} Nf6 {[%emt 0:00:10]} 5. Nc3 {[%emt 0:00:03]} a6 {[%emt 0:00:06]} 6. Bg5 {[%emt 0:00:03]} Nbd7 {[%emt 0:01:11]} 7. Bc4 {[%emt 0:15:30]} Qb6 {[%emt 0:00:59]} 8. Bb3 {[%emt 0:06:06]} e6 {[%emt 0:00:11]} 9. Be3 {[%emt 0:01:47]} Nc5 {[%emt 0:04:02]} 10. f3 {[%emt 0:09:01]} h5 {[%emt 0:09:19]} 11. Qe2 {[%emt 0:08:07]} Be7 {[%emt 0:09:31]} 12. O-O-O {[%emt 0:03:18]} Bd7 {[%emt 0:07:55]} 13. Kb1 {[%emt 0:10:54]} O-O-O {[%emt 0:09:05]} 14. Bg5 {[%emt 0:04:02]} Kb8 {[%emt 0:10:45]} 15. f4 {[%emt 0:01:53]} Bc8 {[%emt 0:15:52]} 16. Rhf1 {[%emt 0:08:40]} Rhe8 {[%emt 0:02:25]} 17. e5 {[%emt 0:01:17]} dxe5 {[%emt 0:00:13]} 18. fxe5 {[%emt 0:01:47]} Rxd4 {[%emt 0:01:59]} 19. Rxd4 {[%emt 0:06:28]} Nxb3 {[%emt 0:00:50]} 20. Rdd1 {[%emt 0:00:12]} Nd4 {[%emt 0:01:04]} 21. Qc4 {[%emt 0:00:30]} Nb5 {[%emt 0:00:39]} 22. Nxb5 {[%emt 0:04:56]} axb5 {[%emt 0:00:09]} 23. Qf4 {[%emt 0:01:00]} Nd5 {[%emt 0:02:37]} 24. Qxf7 {[%emt 0:01:32]} Bxg5 {[%emt 0:03:44]} 25. Qxe8 {[%emt 0:01:21]} Ne3 {[%emt 0:02:36]} 26. Rf8 {[%emt 0:10:46]} Qc5 {[%emt 0:00:09]} 27. Rh1 {[%emt 0:00:20]} Qxc2+ {[%emt 0:05:40]} 28. Ka1 {[%emt 0:00:01]} Qc5 {[%emt 0:06:08]} 29. h4 {[%emt 0:00:52]} Bh6 {[%emt 0:02:16]} 30. Qd8 {[%emt 0:00:57]} Nc4 {[%emt 0:01:00]} 31. Rd1 {[%emt 0:01:56]} Nxe5 {[%emt 0:00:57]} 32. Qd6+ {[%emt 0:02:23]} Qxd6 {[%emt 0:00:15]} 33. Rxd6 {[%emt 0:00:01]} Kc7 {[%emt 0:00:20]} 34. Rd4 {[%emt 0:00:28]} Bd7 {[%emt 0:00:10]} 35. Kb1 {[%emt 0:00:51]} Bc6 {[%emt 0:00:15]} 36. g3 {[%emt 0:00:31]} Nf3 {[%emt 0:00:35]} 37. Rf7+ {[%emt 0:00:33]} Kb6 {[%emt 0:00:06]} 38. Rd6 {[%emt 0:00:16]} Nd2+ {[%emt 0:00:44]} 39. Kc2 {[%emt 0:00:39]} Ne4 {[%emt 0:00:33]} 40. Rxe6 {[%emt 0:00:21]} Nxg3 {[%emt 0:01:24]} 41. Kd3 {[%emt 0:07:52]} Kc5 {[%emt 0:00:35]} 42. Rxc6+ {[%emt 0:03:17]} bxc6 {[%emt 0:04:42]} 43. Rf3 {[%emt 0:00:09]} Nh1 {[%emt 0:05:44]} 44. Ke2 {[%emt 0:01:47]} Kd4 {[%emt 0:00:49]} 45. Rd3+ {[%emt 0:01:27]} Ke4 {[%emt 0:00:41]} 46. Rh3 {[%emt 0:00:06]} g5 {[%emt 0:06:49]} 47. Rxh1 {[%emt 0:07:25]} g4 {[%emt 0:00:32]} 48. Rd1 {[%emt 0:00:39]} Bg7 {[%emt 0:02:34]} 49. Rd6 {[%emt 0:08:09]} c5 {[%emt 0:00:20]} 50. b3 {[%emt 0:01:07]} Bd4 {[%emt 0:07:52]} 51. a4 {[%emt 0:01:59]} c4 {[%emt 0:01:34]} 52. bxc4 {[%emt 0:00:41]} bxa4 {[%emt 0:00:30]} 53. Ra6 {[%emt 0:01:11]} g3 {[%emt 0:00:26]} 54. Rxa4 {[%emt 0:01:16]} g2 {[%emt 0:01:23]} 55. Ra1 {[%emt 0:00:36]} Kf4 {[%emt 0:00:02]} 56. Rd1 {[%emt 0:00:12]} Kg3 {[%emt 0:00:04]} 0-1